fUSD/lending_fUSD_20240513
["ID","MTS","AMOUNT","RATE_DAILY","PERIOD"]
[326920903,1715583055148,-212.17,0.00012876,2]
[326920904,1715583055158,-500.0,0.00012876,2]
[326920905,1715583055167,-500.0,0.00012876,2]
[326920906,1715583055178,-500.0,0.00012876,2]
[326920907,1715583055187,-424.486956,0.00012876,2]
[326920908,1715583055196,-500.0,0.00012876,2]
[326920909,1715583055206,-540.09,0.00012876,2]
[326920910,1715583055217,-500.0,0.00012876,2]
[326920911,1715583055227,-500.0,0.00012876,2]
[326920912,1715583055236,-343.3424618,0.00012876,2]
[326920913,1715583055245,-505.53020673,0.00012876,2]
[326920914,1715583055255,-500.0,0.00012876,2]
[326920915,1715583055264,-383.65,0.00012876,2]
[326920916,1715583055274,-508.20638168,0.00012876,2]
[326920917,1715583055283,-500.0,0.00012876,2]
[326920918,1715583055293,-564.47909206,0.00012876,2]
[326920919,1715583055303,-500.0,0.00012876,2]
[326920920,1715583055313,-172.56796434,0.00012876,2]
[326920921,1715583055322,-500.0,0.00012876,2]
[326920922,1715583055332,-500.0,0.00012876,2]
[326920923,1715583055342,-582.51978764,0.00012876,2]
[326920924,1715583055352,-506.25800586,0.00012876,2]
[326920925,1715583055364,-151.0,0.00012876,2]
[326920926,1715583055374,-209.661059,0.00012876,2]
[326920927,1715583055384,-605.34021673,0.00012876,2]
[326920928,1715583055394,-228.276826,0.00012876,2]
[326920929,1715583055404,-151.0,0.00012876,2]
[326920930,1715583055414,-228.276826,0.00012876,2]
[326920931,1715583055424,-151.0,0.00012876,2]
[326920932,1715583055435,-228.276826,0.00012876,2]
[326920933,1715583055445,-151.0,0.00012876,2]
[326920934,1715583055455,-507.91591415,0.00012876,2]
[326920935,1715583055465,-500.0,0.00012876,2]
[326920936,1715583055474,-484.74124838,0.00012876,2]
[326920937,1715583055484,-241.326377,0.00012876,2]
[326920938,1715583055493,-228.276826,0.00012876,2]
[326920939,1715583055503,-500.0,0.00012876,2]
[326920940,1715583055512,-228.276826,0.00012876,2]
[326920941,1715583055522,-611.59104003,0.00012876,2]
[326920942,1715583055532,-500.0,0.00012876,2]
[326920943,1715583055542,-228.276826,0.00012876,2]
[326920944,1715583055552,-500.0,0.00012876,2]
[326920945,1715583055562,-151.0,0.00012876,2]
[326920946,1715583055572,-222.05072784,0.00012876,2]
[326920947,1715583055582,-151.0,0.00012876,2]
[326920948,1715583055592,-151.0,0.00012876,2]
[326920949,1715583055601,-500.0,0.00012876,2]
[326920950,1715583055612,-190.16,0.00012876,2]
[326920951,1715583055622,-500.0,0.00012876,2]
[326920952,1715583055631,-500.0,0.00012876,2]
[326920953,1715583055641,-533.18241638,0.00012876,2]
[326920954,1715583055650,-299.17,0.00012876,2]
[326920955,1715583055660,-1839.97955,0.00012876,2]
[326920956,1715583055670,-1839.97955,0.00012876,2]
[326920957,1715583055679,-261.983985,0.00012876,2]
[326920958,1715583055688,-500.0,0.00012876,2]
[326920959,1715583055698,-1839.97955,0.00012876,2]
[326920960,1715583055708,-500.0,0.00012876,2]
[326920961,1715583055718,-500.0,0.00012876,2]
[326920962,1715583055728,-151.0,0.00012876,2]
[326920963,1715583055737,-500.0,0.00012876,2]
[326920964,1715583055746,-151.0,0.00012876,2]
[326920965,1715583055755,-500.0,0.00012876,2]
[326920966,1715583055764,-151.0,0.00012876,2]
[326920967,1715583055775,-291.04263761,0.00012876,2]
[326920968,1715583055786,-1839.97955,0.00012876,2]
[326920969,1715583055795,-500.0,0.00012876,2]
[326920970,1715583055804,-1839.97955,0.00012876,2]
[326920971,1715583055815,-500.0,0.00012876,2]
[326920972,1715583055826,-313.33590894,0.00012876,2]
[326920973,1715583055836,-1839.97955,0.00012876,2]
[326920974,1715583055846,-500.0,0.00012876,2]
[326920975,1715583055857,-500.0,0.00012876,2]
[326920976,1715583055867,-500.0,0.00012876,2]
[326920977,1715583055877,-500.0,0.00012876,2]
[326920978,1715583055886,-500.0,0.00012876,2]
[326920979,1715583055896,-500.0,0.00012876,2]
[326920980,1715583055906,-413.55,0.00012876,2]
[326920981,1715583055915,-500.0,0.00012876,2]
[326920982,1715583055924,-500.0,0.00012876,2]
[326920983,1715583055934,-151.0,0.00012876,2]
[326920984,1715583055944,-500.0,0.00012876,2]
[326920985,1715583055954,-500.0,0.00012876,2]
[326920986,1715583055964,-408.84,0.00012876,2]
[326920987,1715583055973,-1653.824688,0.00012876,2]
[326920988,1715583055983,-500.0,0.00012876,2]
[326920989,1715583055992,-500.0,0.00012876,2]
[326920990,1715583056002,-1653.824688,0.00012876,2]
[326920991,1715583056012,-1653.824688,0.00012876,2]
[326920992,1715583056021,-500.0,0.00012876,2]
[326920993,1715583056031,-500.0,0.00012876,2]
[326920994,1715583056041,-557.47,0.00012876,2]
[326920995,1715583056051,-1653.824688,0.00012876,2]
[326920996,1715583056060,-500.0,0.00012876,2]
[326920997,1715583056070,-1653.824688,0.00012876,2]
[326920998,1715583056080,-500.0,0.00012876,2]
[326920999,1715583056089,-1653.824688,0.00012876,2]
[326921000,1715583056099,-500.0,0.00012876,2]
[326921001,1715583056111,-500.0,0.00012876,2]
[326921002,1715583056121,-500.0,0.00012876,2]
[326921003,1715583056135,-174.61,0.00012876,2]
[326921004,1715583056144,-500.0,0.00012876,2]
[326921005,1715583056154,-500.0,0.00012876,2]
[326921006,1715583056164,-500.0,0.00012876,2]
[326921007,1715583056175,-500.0,0.00012876,2]
[326921008,1715583056185,-193.46,0.00012876,2]
[326921009,1715583056194,-921.236754,0.00012876,2]
[326921010,1715583056204,-921.236754,0.00012876,2]
[326921011,1715583056215,-921.236754,0.00012876,2]
[326921012,1715583056225,-504.01014486,0.00012876,2]
[326921013,1715583056234,-500.0,0.00012876,2]
[326921014,1715583056244,-629.92,0.00012876,2]
[326921015,1715583056254,-2824.34,0.00012876,2]
[326921016,1715583056264,-2824.34,0.00012876,2]
[326921017,1715583056273,-921.236754,0.00012876,2]
[326921018,1715583056283,-2824.34,0.00012876,2]
[326921019,1715583056293,-2824.34,0.00012876,2]
[326921020,1715583056302,-921.236754,0.00012876,2]
[326921021,1715583056312,-2824.34,0.00012876,2]
[326921022,1715583056321,-921.236754,0.00012876,2]
[326921023,1715583056331,-2824.34,0.00012876,2]
[326921024,1715583056340,-2824.34,0.00012876,2]
[326921025,1715583056350,-500.0,0.00012876,2]
[326921026,1715583056360,-500.0,0.00012876,2]
[326921027,1715583056530,-500.0,0.00012876,2]
[326921028,1715583056540,-625.31,0.00012876,2]
[326921029,1715583056550,-500.0,0.00012876,2]
[326921030,1715583056560,-500.0,0.00012876,2]
[326921031,1715583056569,-500.0,0.00012876,2]
[326921032,1715583056579,-500.0,0.00012876,2]
[326921033,1715583056588,-500.0,0.00012876,2]
[326921034,1715583056598,-548.65,0.00012876,2]
[326921035,1715583056610,-500.0,0.00012876,2]
[326921036,1715583056620,-543.42309123,0.00012876,2]
[326921037,1715583056629,-500.0,0.00012876,2]
[326921038,1715583056639,-427.48817109,0.00012876,2]
[326921039,1715583056649,-500.0,0.00012876,2]
[326921040,1715583056658,-2154.38,0.00012876,2]
[326921041,1715583056668,-2154.38,0.00012876,2]
[326921042,1715583056677,-500.0,0.00012876,2]
[326921043,1715583056686,-2154.38,0.00012876,2]
[326921044,1715583056696,-2154.38,0.00012876,2]
[326921045,1715583056705,-500.0,0.00012876,2]
[326921046,1715583056715,-2154.38,0.00012876,2]
[326921047,1715583056724,-2154.38,0.00012876,2]
[326921048,1715583056734,-500.0,0.00012876,2]
[326921049,1715583056745,-2154.38,0.00012876,2]
[326921050,1715583056755,-500.0,0.00012876,2]
[326921051,1715583056764,-500.0,0.00012876,2]
[326921052,1715583056774,-151.0,0.00012876,2]
[326921053,1715583056784,-500.0,0.00012876,2]
[326921054,1715583056793,-151.0,0.00012876,2]
[326921055,1715583056803,-500.0,0.00012876,2]
[326921056,1715583056812,-545.2372977,0.00012876,2]
[326921057,1715583056821,-151.0,0.00012876,2]
[326921058,1715583056831,-500.0,0.00012876,2]
[326921059,1715583056841,-157.073929,0.00012876,2]
[326921060,1715583056850,-152.72,0.00012876,2]
[326921061,1715583056861,-157.073929,0.00012876,2]
[326921062,1715583056871,-157.073929,0.00012876,2]
[326921063,1715583056881,-500.0,0.00012876,2]
[326921064,1715583056891,-500.0,0.00012876,2]
[326921065,1715583056900,-500.0,0.00012876,2]
[326921066,1715583056910,-500.0,0.00012876,2]
[326921067,1715583056920,-418.56777998,0.00012876,2]
[326921068,1715583056929,-500.0,0.00012876,2]
[326921069,1715583056939,-500.0,0.00012876,2]
[326921070,1715583056948,-157.073929,0.00012876,2]
[326921071,1715583056957,-500.0,0.00012876,2]
[326921072,1715583056966,-157.073929,0.00012876,2]
[326921073,1715583056976,-500.0,0.00012876,2]
[326921074,1715583056985,-157.073929,0.00012876,2]
[326921075,1715583056995,-500.0,0.00012876,2]
[326921076,1715583057005,-500.0,0.00012876,2]
[326921077,1715583057015,-175.73296287,0.00012876,2]
[326921078,1715583057026,-500.0,0.00012876,2]
[326921079,1715583057037,-500.0,0.00012876,2]
[326921080,1715583057047,-500.0,0.00012876,2]
[326921081,1715583057056,-511.91,0.00012876,2]
[326921082,1715583057065,-500.0,0.00012876,2]
[326921083,1715583057075,-500.0,0.00012876,2]
[326921084,1715583057085,-500.0,0.00012876,2]
[326921085,1715583057094,-500.0,0.00012876,2]
[326921086,1715583057106,-500.0,0.00012876,2]
[326921087,1715583057116,-500.0,0.00012876,2]
[326921088,1715583057126,-500.0,0.00012876,2]
[326921089,1715583057136,-500.0,0.00012876,2]
[326921090,1715583057148,-500.0,0.00012876,2]
[326921091,1715583057159,-500.0,0.00012876,2]
[326921092,1715583057170,-500.0,0.00012876,2]
[326921093,1715583057180,-279.5,0.00012876,2]
[326921094,1715583057189,-486.26,0.00012876,2]
[326921095,1715583057199,-500.0,0.00012876,2]
[326921096,1715583057209,-500.0,0.00012876,2]
[326921097,1715583057221,-500.0,0.00012876,2]
[326921098,1715583057232,-500.0,0.00012876,2]
[326921099,1715583057241,-500.0,0.00012876,2]
[326921100,1715583057250,-500.0,0.00012876,2]
[326921101,1715583057260,-500.0,0.00012876,2]
[326921102,1715583057270,-398.8,0.00012876,2]
[326921103,1715583057279,-500.0,0.00012876,2]
[326921104,1715583057289,-227.48,0.00012876,2]
[326921105,1715583057299,-500.0,0.00012876,2]
[326921106,1715583057308,-500.0,0.00012876,2]
[326921107,1715583057318,-500.0,0.00012876,2]
[326921108,1715583057327,-500.0,0.00012876,2]
[326921109,1715583057337,-500.0,0.00012876,2]
[326921110,1715583057347,-500.0,0.00012876,2]
[326921111,1715583057357,-500.0,0.00012876,2]
[326921112,1715583057366,-500.0,0.00012876,2]
[326921113,1715583057376,-500.0,0.00012876,2]
[326921114,1715583057387,-154.18656963,0.00012876,2]
[326921115,1715583057397,-500.0,0.00012876,2]
[326921116,1715583057406,-500.0,0.00012876,2]
[326921117,1715583057416,-500.0,0.00012876,2]
[326921118,1715583057425,-500.0,0.00012876,2]
[326921119,1715583057435,-649.03,0.00012876,2]
[326921120,1715583057445,-500.0,0.00012876,2]
[326921121,1715583057454,-160.0,0.00012876,2]
[326921122,1715583057463,-500.0,0.00012876,2]
[326921123,1715583057472,-500.0,0.00012876,2]
[326921124,1715583057482,-500.0,0.00012876,2]
[326921125,1715583057491,-169.11,0.00012876,2]
[326921126,1715583057501,-151.0,0.00012877,2]
[326921127,1715583057510,-151.0,0.00012877,2]
[326921128,1715583057521,-151.0,0.00012877,2]
[326921129,1715583057530,-150.0,0.00012877,2]
[326921130,1715583057543,-150.0,0.00012877,2]
[326921131,1715583057552,-150.0,0.00012877,2]
[326921132,1715583057562,-150.0,0.00012877,2]
[326921133,1715583057571,-150.0,0.00012877,2]
[326921134,1715583057581,-1936.79,0.00012878,2]
[326921135,1715583057591,-151.0,0.00012878,2]
[326921136,1715583057600,-151.0,0.00012878,2]
[326921137,1715583057611,-1997.1,0.00012878,2]
[326921138,1715583057621,-500.97,0.00012878,2]
[326921139,1715583057630,-500.0,0.00012878,2]
[326921140,1715583057640,-500.0,0.00012878,2]
[326921141,1715583057649,-1713.23,0.00012878,2]
[326921142,1715583057659,-2824.34,0.00012878,2]
[326921143,1715583057669,-2154.38,0.00012878,2]
[326921144,1715583057679,-673.91995755,0.00012879,2]
[326921145,1715583057689,-1936.79,0.00012879,2]
[326921146,1715583057699,-1936.79,0.00012879,2]
[326921147,1715583057711,-1936.79,0.00012879,2]
[326921148,1715583057721,-1936.79,0.00012879,2]
[326921149,1715583057731,-1936.79,0.00012879,2]
[326921150,1715583057742,-1936.80772671,0.00012879,2]
[326921151,1715583057752,-151.0,0.00012879,2]
[326921152,1715583057762,-152.651836,0.00012879,2]
[326921153,1715583057772,-151.0,0.00012879,2]
[326921154,1715583057783,-151.0,0.00012879,2]
[326921155,1715583057792,-151.0,0.00012879,2]
[326921156,1715583057802,-151.0,0.00012879,2]
[326921157,1715583057812,-1997.1,0.00012879,2]
[326921158,1715583057823,-1997.1,0.00012879,2]
[326921159,1715583057834,-1997.1,0.00012879,2]
[326921160,1715583057844,-1997.1,0.00012879,2]
[326921161,1715583057854,-1997.1,0.00012879,2]
[326921162,1715583057864,-1997.20913768,0.00012879,2]
[326921163,1715583057874,-188.17126,0.00012879,2]
[326921164,1715583057883,-328.34683524,0.00012879,2]
[326921165,1715583057893,-188.17126,0.00012879,2]
[326921166,1715583057902,-151.0,0.00012879,2]
[326921167,1715583057911,-151.0,0.00012879,2]
[326921168,1715583057921,-246.112856,0.00012879,2]
[326921169,1715583057930,-1171.024353,0.00012879,2]
[326921170,1715583057940,-206.058549,0.00012879,2]
[326921171,1715583057950,-246.112856,0.00012879,2]
[326921172,1715583057960,-151.0,0.00012879,2]
[326921173,1715583057969,-1171.024353,0.00012879,2]
[326921174,1715583057979,-206.058549,0.00012879,2]
[326921175,1715583057989,-244.169957,0.00012879,2]
[326921176,1715583057999,-151.0,0.00012879,2]
[326921177,1715583058010,-151.0,0.00012879,2]
[326921178,1715583058021,-154.306158,0.00012879,2]
[326921179,1715583058031,-151.0,0.00012879,2]
[326921180,1715583058040,-151.0,0.00012879,2]
[326921181,1715583058050,-296.101938,0.00012879,2]
[326921182,1715583058059,-151.0,0.00012879,2]
[326921183,1715583058068,-151.0,0.00012879,2]
[326921184,1715583058077,-158.559625,0.00012879,2]
[326921185,1715583058087,-151.0,0.00012879,2]
[326921186,1715583058096,-423.397302,0.00012879,2]
[326921187,1715583058106,-423.397302,0.00012879,2]
[326921188,1715583058115,-151.0,0.00012879,2]
[326921189,1715583058125,-151.0,0.00012879,2]
[326921190,1715583058139,-633.04,0.00012879,2]
[326921191,1715583058149,-151.0,0.00012879,2]
[326921192,1715583058158,-500.97,0.00012879,2]
[326921193,1715583058167,-500.97,0.00012879,2]
[326921194,1715583058178,-500.97,0.00012879,2]
[326921195,1715583058187,-500.97,0.00012879,2]
[326921196,1715583058197,-500.97,0.00012879,2]
[326921197,1715583058207,-501.20710588,0.00012879,2]
[326921198,1715583058218,-151.0,0.00012879,2]
[326921199,1715583058229,-425.662773,0.00012879,2]
[326921200,1715583058238,-425.662773,0.00012879,2]
[326921201,1715583058249,-151.0,0.00012879,2]
[326921202,1715583058258,-151.0,0.00012879,2]
[326921203,1715583058267,-500.0,0.00012879,2]
[326921204,1715583058276,-500.0,0.00012879,2]
[326921205,1715583058285,-151.0,0.00012879,2]
[326921206,1715583058295,-269.57844679,0.00012879,2]
[326921207,1715583058305,-1713.23,0.00012879,2]
[326921208,1715583058314,-1713.23,0.00012879,2]
[326921209,1715583058323,-1713.23,0.00012879,2]
[326921210,1715583058333,-1713.23,0.00012879,2]
[326921211,1715583058343,-1713.23,0.00012879,2]
[326921212,1715583058352,-1713.23,0.00012879,2]
[326921213,1715583058364,-1713.23,0.00012879,2]
[326921214,1715583058373,-1713.23,0.00012879,2]
[326921215,1715583058381,-1713.23,0.00012879,2]
[326921216,1715583058390,-1713.23,0.00012879,2]
[326921217,1715583058399,-1713.23,0.00012879,2]
[326921218,1715583058408,-1713.23,0.00012879,2]
[326921219,1715583058418,-1713.23,0.00012879,2]
[326921220,1715583058428,-1713.23,0.00012879,2]
[326921221,1715583058439,-151.0,0.00012879,2]
[326921222,1715583058447,-1713.23,0.00012879,2]
[326921223,1715583058457,-1713.40513384,0.00012879,2]
[326921224,1715583058467,-151.0,0.00012879,2]
[326921225,1715583058476,-500.0,0.00012879,2]
[326921226,1715583058486,-500.0,0.00012879,2]
[326921227,1715583058496,-500.0,0.00012879,2]
[326921228,1715583058505,-553.00864501,0.00012879,2]
[326921229,1715583058516,-500.0,0.00012879,2]
[326921230,1715583058526,-500.0,0.00012879,2]
[326921231,1715583058537,-500.0,0.00012879,2]
[326921232,1715583058546,-500.0,0.00012879,2]
[326921233,1715583058559,-500.0,0.00012879,2]
[326921234,1715583058568,-649.52094186,0.00012879,2]
[326921235,1715583058578,-280.639674,0.00012879,2]
[326921236,1715583058588,-280.639674,0.00012879,2]
[326921237,1715583058598,-228.276826,0.00012879,2]
[326921238,1715583058610,-151.0,0.00012879,2]
[326921239,1715583058620,-228.276826,0.00012879,2]
[326921240,1715583058629,-151.0,0.00012879,2]
[326921241,1715583058639,-1839.97955,0.00012879,2]
[326921242,1715583058649,-151.0,0.00012879,2]
[326921243,1715583058658,-1839.97955,0.00012879,2]
[326921244,1715583058668,-1653.824688,0.00012879,2]
[326921245,1715583058677,-1653.824688,0.00012879,2]
[326921246,1715583058686,-921.236754,0.00012879,2]
[326921247,1715583058696,-921.236754,0.00012879,2]
[326921248,1715583058705,-2824.34,0.00012879,2]
[326921249,1715583058715,-2824.34,0.00012879,2]
[326921250,1715583058724,-2824.34,0.00012879,2]
[326921251,1715583058735,-2824.34,0.00012879,2]
[326921252,1715583058745,-2824.34,0.00012879,2]
[326921253,1715583058755,-2824.34,0.00012879,2]
[326921254,1715583058764,-2824.34,0.00012879,2]
[326921255,1715583058773,-2824.34,0.00012879,2]
[326921256,1715583058783,-2824.34,0.00012879,2]
[326921257,1715583058793,-2824.34,0.00012879,2]
[326921258,1715583058802,-2824.34,0.00012879,2]
[326921259,1715583058811,-2824.34,0.00012879,2]
[326921260,1715583058820,-2824.34,0.00012879,2]
[326921261,1715583058830,-2824.34,0.00012879,2]
[326921262,1715583058840,-2824.34,0.00012879,2]
[326921263,1715583058849,-2824.39443313,0.00012879,2]
[326921264,1715583058859,-2154.38,0.00012879,2]
[326921265,1715583058869,-2154.38,0.00012879,2]
[326921266,1715583058879,-2154.38,0.00012879,2]
[326921268,1715583058888,-282.937536,0.00012879,2]
[326921269,1715583058898,-2154.38,0.00012879,2]
[326921270,1715583058908,-2154.38,0.00012879,2]
[326921271,1715583058917,-2154.38,0.00012879,2]
[326921272,1715583058927,-2154.38,0.00012879,2]
[326921273,1715583058936,-157.073929,0.00012879,2]
[326921274,1715583058946,-2154.38,0.00012879,2]
[326921275,1715583058955,-2154.38,0.00012879,2]
[326921276,1715583058964,-2154.38,0.00012879,2]
[326921277,1715583058974,-2154.38,0.00012879,2]
[326921278,1715583059025,-2154.38,0.00012879,2]
[326921279,1715583059037,-2154.38,0.00012879,2]
[326921280,1715583059047,-2154.38,0.00012879,2]
[326921281,1715583059058,-2154.38,0.00012879,2]
[326921282,1715583059069,-2154.47452018,0.00012879,2]
[326921283,1715583059081,-157.073929,0.00012879,2]
[326921284,1715583059092,-180213.23695661,0.0001288,2]
[326921285,1715583059102,-317150.7604652,0.0001288,2]
[326921286,1715583059412,-500.0,0.00012876,2]
[326921287,1715583059421,-1552.60659299,0.0001288,2]
[326921288,1715583059432,-1015.32798064,0.0001288,2]
[326921289,1715583059585,-500.0,0.00012876,2]
[326921290,1715583059595,-50.4865368,0.00012876,2]
[326921291,1715583059622,-449.5134632,0.00012876,2]
[326921292,1715583059632,-500.0,0.00012876,2]
[326921293,1715583059642,-500.0,0.00012876,2]
[326921294,1715583059651,-363.98,0.00012876,2]
[326921295,1715583059660,-500.0,0.00012876,2]
[326921296,1715583059670,-500.0,0.00012876,2]
[326921297,1715583059680,-912335.47686272,0.0001288,2]
[326921298,1715583059695,-3068.8,0.0001288,2]
[326921299,1715583059718,-4545.49965588,0.0001288,2]
[326921300,1715583059893,-723.78252744,0.00012799,2]
[326921301,1715583059905,-246.83,0.00012876,2]
[326921302,1715583059914,-506.034046,0.00012876,2]
[326921303,1715583059923,-506.034046,0.00012876,2]
[326921304,1715583059932,-506.034046,0.00012876,2]
[326921305,1715583059941,-506.034046,0.00012879,2]
[326921306,1715583059950,-149540.2327085,0.0001288,2]
[326921307,1715583059986,-1421.12891,0.000128,2]
[326921308,1715583059995,-773.24225864,0.0001288,2]
[326921309,1715583060006,-397.0,0.0001288,2]
[326921310,1715583060017,-30956.04272792,0.0001288,2]
[326921322,1715583505152,-3006.44548709,0.00011662,2]
[326921323,1715583505175,-640.93,0.00011663,2]
[326921324,1715583505198,-352.62451291,0.00011826,2]
[326921325,1715583506307,-151.91548709,0.00011826,2]
[326921326,1715583506330,-3848.08451291,0.00011842,2]
[326921327,1715583513422,-3850.0,0.00011842,2]
[326921328,1715583523774,-2000.0,0.00011842,2]
[326921329,1715583598472,173.13568165,0.00025,120]
[326921331,1715583891471,-250.0,0.00011782,2]
[326921332,1715583895257,156.94,0.00025,120]
[326921333,1715584049599,152.64,0.00011752,2]
[326921334,1715584103256,250.0,0.00011749,2]
[326921335,1715584130519,426.61,0.00011777,2]
[326921372,1715584211055,1913.04,0.00011778,2]
[326921382,1715584232727,-150.0,0.00011783,2]
[326921383,1715584232737,-2589.75849578,0.00011786,2]
[326921384,1715584232895,-416.68699131,0.00011786,2]
[326921385,1715584232904,-596.36,0.00011787,2]
[326921386,1715584232914,-23900.0,0.00011794,2]
[326921387,1715584232923,-247.36,0.00011837,2]
[326921388,1715584232933,-5000.0,0.00012,2]
[326921389,1715584232942,-457.39909841,0.00012,2]
[326921390,1715584232951,-1237.69391025,0.00012206,7]
[326921437,1715584238305,-490.1733676,0.00012206,7]
[326921438,1715584238477,-2348.40046312,0.00012206,7]
[326921439,1715584238489,-253.67024202,0.00012206,7]
[326921440,1715584238500,-1100.0,0.00012206,7]
[326921441,1715584238513,-455.32975798,0.00012206,7]
[326921442,1715584238524,-333.84412712,0.00012206,7]
[326921443,1715584238626,-967.5007119,0.00012206,7]
[326921447,1715584240591,-1074.34471752,0.00012206,7]
[326921448,1715584240603,-955.30739024,0.00012206,7]
[326921449,1715584240612,-176.73,0.00012342,2]
[326921450,1715584240622,-499.99,0.00012386,2]
[326921451,1715584240632,-215.10671939,0.00012386,2]
[326921471,1715584243350,-444.24779552,0.00012386,2]
[326921472,1715584243362,-993.12736041,0.00012386,2]
[326921475,1715584243516,-9706.51812468,0.00012386,2]
[326921476,1715584243525,-155.0,0.000125,2]
[326921477,1715584243535,-210.4629,0.0001265,2]
[326921478,1715584243547,-2500.0,0.0001265,2]
[326921479,1715584243556,-523.56,0.000127,2]
[326921480,1715584243565,-420.36,0.000127,2]
[326921481,1715584243575,-154.6,0.000127,2]
[326921482,1715584243584,-1215.88,0.000127,2]
[326921483,1715584243593,-152.15,0.000127,2]
[326921484,1715584243602,-552.35,0.000127,2]
[326921485,1715584243611,-328.62,0.000127,2]
[326921486,1715584243620,-744.16,0.000127,2]
[326921487,1715584243629,-150.0,0.000127,2]
[326921488,1715584243638,-300.0,0.000127,2]
[326921489,1715584243647,-523.56,0.000127,2]
[326921490,1715584243657,-150.0,0.000127,2]
[326921491,1715584243666,-684.58,0.000127,2]
[326921492,1715584243678,-150.0,0.000127,2]
[326921493,1715584243687,-150.0,0.000127,2]
[326921494,1715584243696,-150.0,0.000127,2]
[326921495,1715584243705,-420.36,0.000127,2]
[326921496,1715584243714,-150.0,0.000127,2]
[326921497,1715584243723,-150.0,0.000127,2]
[326921498,1715584243732,-523.56,0.000127,2]
[326921499,1715584243742,-420.36,0.000127,2]
[326921500,1715584243751,-150.0,0.000127,2]
[326921501,1715584243760,-523.56,0.000127,2]
[326921502,1715584243769,-150.0,0.000127,2]
[326921503,1715584243778,-150.0,0.000127,2]
[326921504,1715584243787,-150.0,0.000127,2]
[326921505,1715584243796,-426.34,0.000127,2]
[326921506,1715584243806,-150.0,0.000127,2]
[326921507,1715584243823,-523.56,0.000127,2]
[326921508,1715584243835,-150.0,0.000127,2]
[326921509,1715584243844,-304.93,0.000127,2]
[326921510,1715584243854,-3501.49195481,0.0001271,2]
[326921511,1715584243864,-1562.13781289,0.00012713,2]
[326921512,1715584243874,-59177.4489243,0.0001275,2]
[326921513,1715584243883,-12646.59177514,0.0001275,2]
[326921514,1715584243893,-83900.9944,0.0001275,2]
[326921515,1715584243902,-356.60001013,0.00012751,2]
[326921516,1715584243912,-755.05542681,0.00012765,2]
[326921517,1715584243924,-3322.3238,0.00012776,2]
[326921518,1715584243933,-500.0,0.00012777,2]
[326921519,1715584243943,-755.0554268,0.00012777,2]
[326921520,1715584243952,-1862.5279,0.0001278,2]
[326921521,1715584243961,-218.08366345,0.0001278,2]
[326921522,1715584243971,-870.99246464,0.0001278,2]
[326921523,1715584243980,-755.0554268,0.0001279,2]
[326921525,1715584243990,-523.56,0.000128,2]
[326921527,1715584243999,-150.0,0.000128,2]
[326921528,1715584244009,-150.0,0.000128,2]
[326921529,1715584244020,-420.36,0.000128,2]
[326921530,1715584244030,-150.0,0.000128,2]
[326921531,1715584244040,-755.0554268,0.00012802,2]
[326921532,1715584244050,-755.0554268,0.00012814,2]